{"text_format":"3","workbook":"xlsx","n_sheets":1,"sheets":["Tính toán Khoản vay"],"not_rendered":{"defined_names":10},"read":"whole","date_system":"1900"}

{"sheet":"Tính toán Khoản vay","index":0,"n_rows":22,"n_cols":13,"rows_kept":22,"merged":[[1,1,1,3],[1,6,2,8],[1,11,2,12],[2,1,2,3],[6,5,6,6],[7,5,7,6],[10,2,10,5],[10,6,10,8],[10,9,10,12],[18,2,18,12]]}
[]
[null,"Trình tính toán",{"$nulls":4},{"v":1040000000,"d":"1,040,000,000 ₫"},{"$nulls":4},{"v":40673,"d":"4067300.00%"}]
[null,"Khoản vay Học tập"]
[]
[null,"Theo gợi ý, tổng các khoản trả nợ hàng tháng cho khoản vay học tập không nên vượt quá 8% lương năm thứ nhất của bạn."]
[]
[null,null,"Tổng các khoản thanh toán hàng tháng hiện tại của bạn là:",null,null,{"$f":"CollegeLoans[[#Totals],[Thanh toán Hàng tháng Hiện tại]]","v":{"v":6834586.871020237,"d":"6,834,586.87 ₫"}},null,null,"Tổng các khoản thanh toán hàng tháng dự kiến của bạn là:",{"$nulls":3},{"$f":"CollegeLoans[[#Totals],[Thanh toán Theo lịch]]","v":{"v":6834586.871020237,"d":"6,834,587 ₫"}}]
[null,null,"Phần trăm trong thu nhập hàng tháng:",null,null,{"$f":"CollegeLoans[[#Totals],[Thanh toán Hàng tháng Hiện tại]]/EstimatedMonthlySalary","v":{"v":0.07886061774254119,"d":"7.89%"}},null,null,"  Phần trăm trong thu nhập hàng tháng:",{"$nulls":3},{"$f":"CollegeLoans[[#Totals],[Thanh toán Theo lịch]]/EstimatedMonthlySalary","v":{"v":0.07886061774254119,"d":"7.89%"}}]
[]
[]
[null,null,"CHI TIẾT CHUNG VỀ KHOẢN VAY",{"$nulls":3},"THÔNG TIN TRẢ NỢ",null,null,"CHI TIẾT THANH TOÁN"]
[null,null,"Số hiệu Khoản vay","Người cho vay","Số tiền Vay","Lãi Suất Năm","Ngày Bắt đầu","Thời hạn (năm)","Ngày Kết thúc","Thanh toán Hàng tháng Hiện tại","Tổng lãi","Thanh toán Theo lịch","Thanh toán Hàng năm"]
[null,null,"10998M88","Người cho vay 1",{"v":208000000,"d":"208,000,000 ₫"},{"v":0.05,"d":"5.00%"},{"v":40634,"d":"4063400.00%"},10,{"$f":"IF(AND(CollegeLoans[[#This Row],[Ngày Bắt đầu]]>0,CollegeLoans[[#This Row],[Thời hạn (năm)]]>0),EDATE(CollegeLoans[[#This Row],[Ngày Bắt đầu]],CollegeLoans[[#This Row],[Thời hạn (năm)]]*12),\"\")","v":{"v":44287,"d":"4428700.00%"}},{"$f":"IF(AND(LoanStartLToday,COUNT(CollegeLoans[[#This Row],[Số tiền Vay]:[Thời hạn (năm)]])=4,CollegeLoans[[#This Row],[Ngày Bắt đầu]]<TODAY()),PMT(CollegeLoans[[#This Row],[Lãi Suất Năm]]/12,CollegeLoans[[#This Row],[Thời hạn (năm)]]*12,-CollegeLoans[[#This Row],[Số tiền Vay]],0,0),\"\")","v":{"v":2206162.7169727646,"d":"2,206,163 ₫"}},{"$f":"IFERROR((CollegeLoans[[#This Row],[Thanh toán Theo lịch]]*(CollegeLoans[[#This Row],[Thời hạn (năm)]]*12))-CollegeLoans[[#This Row],[Số tiền Vay]],\"\")","v":{"v":56739526.03673175,"d":"56,739,526 ₫"}},{"$f":"IF(COUNTA(CollegeLoans[[#This Row],[Số tiền Vay]:[Thời hạn (năm)]])<>4,\"\",PMT(CollegeLoans[[#This Row],[Lãi Suất Năm]]/12,CollegeLoans[[#This Row],[Thời hạn (năm)]]*12,-CollegeLoans[[#This Row],[Số tiền Vay]],0,0))","v":{"v":2206162.7169727646,"d":"2,206,163 ₫"}},{"$f":"IFERROR(CollegeLoans[[#This Row],[Thanh toán Theo lịch]]*12,\"\")","v":{"v":26473952.603673175,"d":"26,473,953 ₫"}}]
[null,null,"20987N87","Người cho vay 2",{"v":166400000,"d":"166,400,000 ₫"},{"v":0.05,"d":"5.00%"},{"v":40664,"d":"4066400.00%"},10,{"$f":"IF(AND(CollegeLoans[[#This Row],[Ngày Bắt đầu]]>0,CollegeLoans[[#This Row],[Thời hạn (năm)]]>0),EDATE(CollegeLoans[[#This Row],[Ngày Bắt đầu]],CollegeLoans[[#This Row],[Thời hạn (năm)]]*12),\"\")","v":{"v":44317,"d":"4431700.00%"}},{"$f":"IF(AND(LoanStartLToday,COUNT(CollegeLoans[[#This Row],[Số tiền Vay]:[Thời hạn (năm)]])=4,CollegeLoans[[#This Row],[Ngày Bắt đầu]]<TODAY()),PMT(CollegeLoans[[#This Row],[Lãi Suất Năm]]/12,CollegeLoans[[#This Row],[Thời hạn (năm)]]*12,-CollegeLoans[[#This Row],[Số tiền Vay]],0,0),\"\")","v":{"v":1764930.1735782118,"d":"1,764,930 ₫"}},{"$f":"IFERROR((CollegeLoans[[#This Row],[Thanh toán Theo lịch]]*(CollegeLoans[[#This Row],[Thời hạn (năm)]]*12))-CollegeLoans[[#This Row],[Số tiền Vay]],\"\")","v":{"v":45391620.82938543,"d":"45,391,621 ₫"}},{"$f":"IF(COUNTA(CollegeLoans[[#This Row],[Số tiền Vay]:[Thời hạn (năm)]])<>4,\"\",PMT(CollegeLoans[[#This Row],[Lãi Suất Năm]]/12,CollegeLoans[[#This Row],[Thời hạn (năm)]]*12,-CollegeLoans[[#This Row],[Số tiền Vay]],0,0))","v":{"v":1764930.1735782118,"d":"1,764,930 ₫"}},{"$f":"IFERROR(CollegeLoans[[#This Row],[Thanh toán Theo lịch]]*12,\"\")","v":{"v":21179162.08293854,"d":"21,179,162 ₫"}}]
[null,null,"36785LM","Người cho vay 3",{"v":124800000,"d":"124,800,000 ₫"},{"v":0.045,"d":"4.50%"},{"v":40969,"d":"4096900.00%"},10,{"$f":"IF(AND(CollegeLoans[[#This Row],[Ngày Bắt đầu]]>0,CollegeLoans[[#This Row],[Thời hạn (năm)]]>0),EDATE(CollegeLoans[[#This Row],[Ngày Bắt đầu]],CollegeLoans[[#This Row],[Thời hạn (năm)]]*12),\"\")","v":{"v":44621,"d":"4462100.00%"}},{"$f":"IF(AND(LoanStartLToday,COUNT(CollegeLoans[[#This Row],[Số tiền Vay]:[Thời hạn (năm)]])=4,CollegeLoans[[#This Row],[Ngày Bắt đầu]]<TODAY()),PMT(CollegeLoans[[#This Row],[Lãi Suất Năm]]/12,CollegeLoans[[#This Row],[Thời hạn (năm)]]*12,-CollegeLoans[[#This Row],[Số tiền Vay]],0,0),\"\")","v":{"v":1293407.3412875507,"d":"1,293,407 ₫"}},{"$f":"IFERROR((CollegeLoans[[#This Row],[Thanh toán Theo lịch]]*(CollegeLoans[[#This Row],[Thời hạn (năm)]]*12))-CollegeLoans[[#This Row],[Số tiền Vay]],\"\")","v":{"v":30408880.9545061,"d":"30,408,881 ₫"}},{"$f":"IF(COUNTA(CollegeLoans[[#This Row],[Số tiền Vay]:[Thời hạn (năm)]])<>4,\"\",PMT(CollegeLoans[[#This Row],[Lãi Suất Năm]]/12,CollegeLoans[[#This Row],[Thời hạn (năm)]]*12,-CollegeLoans[[#This Row],[Số tiền Vay]],0,0))","v":{"v":1293407.3412875507,"d":"1,293,407 ₫"}},{"$f":"IFERROR(CollegeLoans[[#This Row],[Thanh toán Theo lịch]]*12,\"\")","v":{"v":15520888.09545061,"d":"15,520,888 ₫"}}]
[null,null,"765R43","Người cho vay 4",{"v":83200000,"d":"83,200,000 ₫"},{"v":0.05,"d":"5.00%"},{"v":41030,"d":"4103000.00%"},5,{"$f":"IF(AND(CollegeLoans[[#This Row],[Ngày Bắt đầu]]>0,CollegeLoans[[#This Row],[Thời hạn (năm)]]>0),EDATE(CollegeLoans[[#This Row],[Ngày Bắt đầu]],CollegeLoans[[#This Row],[Thời hạn (năm)]]*12),\"\")","v":{"v":42856,"d":"4285600.00%"}},{"$f":"IF(AND(LoanStartLToday,COUNT(CollegeLoans[[#This Row],[Số tiền Vay]:[Thời hạn (năm)]])=4,CollegeLoans[[#This Row],[Ngày Bắt đầu]]<TODAY()),PMT(CollegeLoans[[#This Row],[Lãi Suất Năm]]/12,CollegeLoans[[#This Row],[Thời hạn (năm)]]*12,-CollegeLoans[[#This Row],[Số tiền Vay]],0,0),\"\")","v":{"v":1570086.6391817098,"d":"1,570,087 ₫"}},{"$f":"IFERROR((CollegeLoans[[#This Row],[Thanh toán Theo lịch]]*(CollegeLoans[[#This Row],[Thời hạn (năm)]]*12))-CollegeLoans[[#This Row],[Số tiền Vay]],\"\")","v":{"v":11005198.350902587,"d":"11,005,198 ₫"}},{"$f":"IF(COUNTA(CollegeLoans[[#This Row],[Số tiền Vay]:[Thời hạn (năm)]])<>4,\"\",PMT(CollegeLoans[[#This Row],[Lãi Suất Năm]]/12,CollegeLoans[[#This Row],[Thời hạn (năm)]]*12,-CollegeLoans[[#This Row],[Số tiền Vay]],0,0))","v":{"v":1570086.6391817098,"d":"1,570,087 ₫"}},{"$f":"IFERROR(CollegeLoans[[#This Row],[Thanh toán Theo lịch]]*12,\"\")","v":{"v":18841039.67018052,"d":"18,841,040 ₫"}}]
[null,null,"Tổng cộng",null,{"$f":"SUBTOTAL(109,CollegeLoans[Số tiền Vay])","v":{"v":582400000,"d":"582,400,000 ₫"}},{"$nulls":4},{"$f":"SUBTOTAL(109,CollegeLoans[Thanh toán Hàng tháng Hiện tại])","v":{"v":6834586.871020237,"d":"6,834,587 ₫"}},{"$f":"SUBTOTAL(109,CollegeLoans[Tổng lãi])","v":{"v":143545226.17152587,"d":"143,545,226 ₫"}},{"$f":"SUBTOTAL(109,CollegeLoans[Thanh toán Theo lịch])","v":{"v":6834586.871020237,"d":"6,834,587 ₫"}},{"$f":"SUBTOTAL(109,CollegeLoans[Thanh toán Hàng năm])","v":{"v":82015042.45224284,"d":"82,015,042 ₫"}}]
[null,null,"Trung bình",null,{"$f":"AVERAGE(CollegeLoans[Số tiền Vay])","v":{"v":145600000,"d":"145,600,000 ₫"}},{"$f":"AVERAGE(CollegeLoans[Lãi Suất Năm])","v":{"v":0.04875,"d":"4.88%"}},{"$nulls":4},{"$f":"AVERAGE(CollegeLoans[Tổng lãi])","v":{"v":35886306.54288147,"d":"35,886,307 ₫"}},null,{"$f":"AVERAGE(CollegeLoans[Thanh toán Hàng năm])","v":{"v":20503760.61306071,"d":"20,503,761 ₫"}}]
[]
[{"$nulls":10},"Tổng cộng Số tiền Trả nợ:",null,{"$f":"CollegeLoans[[#Totals],[Số tiền Vay]]+CollegeLoans[[#Totals],[Tổng lãi]]","v":{"v":725945226.1715258,"d":"725,945,226 ₫"}}]
[]
[{"$nulls":10},"Ước tính Lương tháng sau khi Tốt nghiệp:",null,{"$f":"(EstimatedAnnualSalary/12)","v":{"v":86666666.66666667,"d":"86,666,667 ₫"}}]